Workbook

Sheet Index
B1: ='Input | General'!$B$1 -> NSW TNSP 2023-28 Regulatory Proposal - Capital expenditure sharing scheme model
B2: Index
C4: Model index
C6: Sheet Name | D6: Sheet Description
C7: Input | General | D7: Inputs NSP name, regulatory years for the prior and forecast regulatory control period etc.
C8: Input | Inflation and Disc Rate | D8: Inputs the inflation and discount rate
C9: Input | Reported Capex | D9: Inputs the reported capital expenditure from the prior regulatory control period as well as the AER's forecast etc.
C10: Calc | CESS Revenue Increments | D10: Calculates the CESS payments from the prior regulatory control period
C11: Output | Models | D11: Outputs the CESS revenue increments needed as a post tax revenue model input
C13: End

Sheet Input | General
B1: =$D$6&" "&$D$8&" "&D7&" - "&"Capital expenditure sharing scheme model" -> NSW TNSP 2023-28 Regulatory Proposal - Capital expenditure sharing scheme model | G1: Key: | H1: Input | I1: Internal Link
B2: Input | General
B4: Input | General
C6: NSP Name | D6: NSW TNSP
C7: Determination stage | D7: Regulatory Proposal
C8: Determination years | D8: 2023-28
C9: Base regulatory year | D9: 2023-24
C11: Regulatory control period details
D12: Year 1 | E12: Year 2 | F12: Year 3 | G12: Year 4 | H12: Year 5
C13: Regulatory control period CESS applied in (regulatory years) | D13: =IF(LEN(E13)>4,CONCATENATE(LEFT(E13,4)-1&"–"&IF(RIGHT(E13,2)="00","99",IF(RIGHT(E13,2)-1<10,"0","")&RIGHT(E13,2)-1)),E13-1) -> 2018–19 | E13: =IF(LEN(F13)>4,CONCATENATE(LEFT(F13,4)-1&"–"&IF(RIGHT(F13,2)="00","99",IF(RIGHT(F13,2)-1<10,"0","")&RIGHT(F13,2)-1)),F13-1) -> 2019–20 | F13: 2020–21 | G13: =IF(LEN(H13)>4,CONCATENATE(LEFT(H13,4)-1&"–"&IF(RIGHT(H13,2)="00","99",IF(RIGHT(H13,2)-1<10,"0","")&RIGHT(H13,2)-1)),H13-1) -> 2021–22 | H13: =IF(LEN(D9)>4,CONCATENATE(LEFT(D9,4)-1&"–"&IF(RIGHT(D9,2)="00","99",IF(RIGHT(D9,2)-1<10,"0","")&RIGHT(D9,2)-1)),D9-1) -> 2022–23
C14: CESS to apply to this year's expenditure (Yes/No) | D14: Yes | E14: Yes | F14: Yes | G14: Yes | H14: Yes
C15: Actual or estimate year | D15: Actual | E15: Actual | F15: Actual | G15: Estimate | H15: Estimate
D17: Year 1 | E17: Year 2 | F17: Year 3 | G17: Year 4 | H17: Year 5
C18: Regulatory control period CESS revenue increment applied in (regulatory years) | D18: =D9 -> 2023-24 | E18: =IF(LEN(D18)>4,CONCATENATE(LEFT(D18,4)+1&"–"&IF(RIGHT(D18,2)+1>9,"","0")&RIGHT(D18,2)+1),D18+1) -> 2024–25 | F18: =IF(LEN(E18)>4,CONCATENATE(LEFT(E18,4)+1&"–"&IF(RIGHT(E18,2)+1>9,"","0")&RIGHT(E18,2)+1),E18+1) -> 2025–26 | G18: 2026–27 | H18: 2027–28
B20: End

Sheet Input | Inflation and Disc Rate
B1: ='Input | General'!$B$1 -> NSW TNSP 2023-28 Regulatory Proposal - Capital expenditure sharing scheme model | I1: Key: | J1: Input | K1: Internal Link
C2: Input | Inflation and Discount rate
C4: Input | Inflation
D6: Source | E6: Unit
F7: =IF(LEN(G7)>4,CONCATENATE(LEFT(G7,4)-1&"–"&IF(RIGHT(G7,2)="00","99",IF(RIGHT(G7,2)-1<10,"0","")&RIGHT(G7,2)-1)),G7-1) -> 2017–18 | G7: ='Input | General'!D13 -> 2018–19 | H7: ='Input | General'!E13 -> 2019–20 | I7: ='Input | General'!F13 -> 2020–21 | J7: ='Input | General'!G13 -> 2021–22 | K7: ='Input | General'!H13 -> 2022–23 | L7: ='Input | General'!D18 -> 2023-24 | M7: ='Input | General'!E18 -> 2024–25 | N7: ='Input | General'!F18 -> 2025–26 | O7: ='Input | General'!G18 -> 2026–27 | P7: ='Input | General'!H18 -> 2027–28
C8: Actual CPI Inflation Rate | D8: TNSP | E8: Per cent | G8: 0.01909090909 | H8: 0.0178412132 | I8: 0.01840490798 | J8: 0.008605851979 | K8: 0.0325
C9: Forecast CPI Inflation Rate | D9: TNSP | E9: Per cent | L9: 0.02349953873 | M9: =L9 -> 0.02349953873 | N9: 0.02349953873 | O9: 0.02349953873 | P9: 0.02349953873
C10: ="CPI Index (base year "&F7&")" -> CPI Index (base year 2017–18) | D10: TNSP | E10: Index | F10: 1 | G10: =IF(G7<>"",(F10*(1+G8)),"") -> 1.019090909 | H10: =IF(H7<>"",(G10*(1+H8)),"") -> 1.037272727 | I10: =IF(I7<>"",(H10*(1+I8)),"") -> 1.056363636 | J10: =IF(J7<>"",(I10*(1+J8)),"") -> 1.065454545 | K10: =IF(K7<>"",(J10*(1+K8)),"") -> 1.100081818 | L10: =IF(L7<>"",(K10*(1+L9)),"") -> 1.125933233 | M10: 1.152392145 | N10: 1.179472829 | O10: 1.207189896 | P10: 1.235558302
C13: Actual CPI Inflation Rate | D13: AER | E13: Per cent | G13: =G8 -> 0.01909090909 | H13: 0.0178412132 | I13: 0.01840490798 | J13: 0.008605851979 | K13: 0.0325
C14: Forecast CPI Inflation Rate | D14: AER | E14: Per cent | L14: 0.02349953873 | M14: =L14 -> 0.02349953873 | N14: 0.02349953873 | O14: 0.02349953873 | P14: 0.02349953873
C15: ="CPI Index (base year "&F7&")" -> CPI Index (base year 2017–18) | D15: AER | E15: Index | F15: 1 | G15: =IF(G7<>"",(F15*(1+G13)),"") -> 1.019090909 | H15: =IF(H7<>"",(G15*(1+H13)),"") -> 1.037272727 | I15: =IF(I7<>"",(H15*(1+I13)),"") -> 1.056363636 | J15: =IF(J7<>"",(I15*(1+J13)),"") -> 1.065454545 | K15: =IF(K7<>"",(J15*(1+K13)),"") -> 1.100081818 | L15: =IF(L7<>"",(K15*(1+L14)),"") -> 1.125933233 | M15: 1.152392145 | N15: 1.179472829 | O15: 1.207189896 | P15: 1.235558302
C17: Input | Discount rate
D19: Source | E19: Unit | G19: =G7 -> 2018–19 | H19: =H7 -> 2019–20 | I19: 2020–21 | J19: 2021–22 | K19: 2022–23 | L19: 2023-24 | M19: 2024–25 | N19: 2025–26 | O19: 2026–27 | P19: 2027–28
C20: Real Vanilla WACC | D20: AER | E20: Per cent | G20: 0.03993698959 | H20: 0.03876891181 | I20: 0.03667696539 | J20: 0.0340251713 | K20: 0.0340251713
C21: Forecast Real Vanilla WACC | D21: AER | E21: Per cent | L21: 0.02299369473 | M21: 0.02299369473 | N21: 0.02299369473 | O21: 0.02299369473 | P21: 0.02299369473
C22: Nominal Vanilla WACC (fixed, real, time varying) | D22: Calculated | E22: Per cent | G22: =IF(AND(G13<>"",G20<>""),((1+G20)*(1+G13)-1),"") -> 0.05979033212 | H22: =IF(AND(H13<>"",H20<>""),((1+H20)*(1+H13)-1),"") -> 0.05730180944 | I22: =IF(AND(I13<>"",I20<>""),((1+I20)*(1+I13)-1),"") -> 0.05575690953 | J22: =IF(AND(J13<>"",J20<>""),((1+J20)*(1+J13)-1),"") -> 0.04292383887 | K22: =IF(AND(K13<>"",K20<>""),((1+K20)*(1+K13)-1),"") -> 0.06763098937 | L22: =IF(AND(L14<>"",L21<>""),((1+L21)*(1+L14)-1),"") -> 0.04703357468 | M22: =IF(AND(M14<>"",M21<>""),((1+M21)*(1+M14)-1),"") -> 0.04703357468 | N22: 0.04703357468 | O22: 0.04703357468 | P22: 0.04703357468
B24: End

Sheet Input | Reported Capex
B1: ='Input | General'!$B$1 -> NSW TNSP 2023-28 Regulatory Proposal - Capital expenditure sharing scheme model | I1: Key: | J1: Input | K1: Internal Link
B2: Input | Capex
B4: Input | Capex Allowance
D6: Source | E6: Unit | F6: Basis | H6: =IF('Input | General'!D14="Yes",'Input | General'!D13,"n/a") -> 2018–19 | I6: =IF('Input | General'!E14="Yes",'Input | General'!E13,"n/a") -> 2019–20 | J6: =IF('Input | General'!F14="Yes",'Input | General'!F13,"n/a") -> 2020–21 | K6: =IF('Input | General'!G14="Yes",'Input | General'!G13,"n/a") -> 2021–22 | L6: =IF('Input | General'!H14="Yes",'Input | General'!H13,"n/a") -> 2022–23
C8: Total capex allowance | D8: AER | E8: $millions | F8: ='Input | Inflation and Disc Rate'!$F$7 -> 2017–18 | H8: 221.8562024 | I8: 359.865353 | J8: 600.4131349 | K8: 1240.756219 | L8: 907.6720461
C9: Asset Disposals | D9: AER | E9: $millions | F9: ='Input | Inflation and Disc Rate'!$F$7 -> 2017–18 | H9: 2.564882845 | I9: 2.564882845 | J9: 2.564882845 | K9: 2.899962413 | L9: 2.564882845
C11: Total capex allowance applicable to CESS | D11: Calculated | E11: $millions | F11: ='Input | Inflation and Disc Rate'!$F$7 -> 2017–18 | H11: =IF(H6="", "", H8-H9) -> 219.2913196 | I11: =IF(I6="", "", I8-I9) -> 357.3004701 | J11: 597.8482521 | K11: 1237.856256 | L11: 905.1071632
B13: Input | Actual / Estimate Capex
D15: Source | E15: Unit | F15: Basis | H15: =H6 -> 2018–19 | I15: =I6 -> 2019–20 | J15: =J6 -> 2020–21 | K15: =K6 -> 2021–22 | L15: =L6 -> 2022–23
C17: Total capex | D17: AER | E17: $millions | F17: nominal | H17: 216.5469486 | I17: 323.9047815 | J17: 781.5335606 | K17: 724.8416852 | L17: 941.232125
C18: Asset Disposals | D18: AER | E18: $millions | F18: nominal | H18: 4.181448133 | I18: 2.165070237 | J18: 3.82439741 | K18: 4.251532725 | L18: 4.347192212
C19: Other excludable capex | D19: AER | E19: $millions | F19: nominal | H19: 6.33194663 | I19: 7.45309704 | J19: 1.40427363 | K19: 0 | L19: 0
C21: Total actual capex applicable to CESS | D21: Calculated | E21: $millions | F21: nominal | H21: =IF(H15="", "", H17-H18-H19) -> 206.0335538 | I21: =IF(I15="", "", I17-I18-I19) -> 314.2866142 | J21: 776.3048895 | K21: 720.5901525 | L21: 936.8849328
B23: Input | Capex Deferred to following regulatory period
H25: ='Input | General'!D18 -> 2023-24 | I25: ='Input | General'!E18 -> 2024–25 | J25: ='Input | General'!F18 -> 2025–26 | K25: ='Input | General'!G18 -> 2026–27 | L25: ='Input | General'!H18 -> 2027–28
C27: Capex deferred and re-proposed | D27: TNSP | E27: $millions | F27: nominal | H27: 462.57 | I27: 78.26478887 | J27: 0 | K27: 0 | L27: 0
C28: Capex deferred and re-proposed | D28: Calculated | E28: $millions | F28: ='Input | Inflation and Disc Rate'!$F$7 -> 2017–18 | H28: =IF(H27<>"",H27/('Input | Inflation and Disc Rate'!K10*(1+'Input | Inflation and Disc Rate'!L9)^0.5),"") -> 415.6316877 | I28: =IF(I27<>"",I27/('Input | Inflation and Disc Rate'!L10*(1+'Input | Inflation and Disc Rate'!M9)^0.5),"") -> 68.70841881 | J28: =IF(J27<>"",J27/('Input | Inflation and Disc Rate'!M10*(1+'Input | Inflation and Disc Rate'!N9)^0.5),"") -> 0 | K28: =IF(K27<>"",K27/('Input | Inflation and Disc Rate'!N10*(1+'Input | Inflation and Disc Rate'!O9)^0.5),"") -> 0 | L28: =IF(L27<>"",L27/('Input | Inflation and Disc Rate'!O10*(1+'Input | Inflation and Disc Rate'!P9)^0.5),"") -> 0
C29: Capex deferred and re-proposed | D29: AER | E29: $millions | F29: nominal | H29: =IF(H27<>"",H28*'Input | Inflation and Disc Rate'!K15*(1+'Input | Inflation and Disc Rate'!L14)^0.5,"") -> 462.57 | I29: =IF(I27<>"",I28*'Input | Inflation and Disc Rate'!L15*(1+'Input | Inflation and Disc Rate'!M14)^0.5,"") -> 78.26478887 | J29: =IF(J27<>"",J28*'Input | Inflation and Disc Rate'!M15*(1+'Input | Inflation and Disc Rate'!N14)^0.5,"") -> 0 | K29: =IF(K27<>"",K28*'Input | Inflation and Disc Rate'!N15*(1+'Input | Inflation and Disc Rate'!O14)^0.5,"") -> 0 | L29: =IF(L27<>"",L28*'Input | Inflation and Disc Rate'!O15*(1+'Input | Inflation and Disc Rate'!P14)^0.5,"") -> 0
B31: End

Sheet Calc | CESS Revenue Increments
B1: ='Input | General'!$B$1 -> NSW TNSP 2023-28 Regulatory Proposal - Capital expenditure sharing scheme model | K1: Key: | L1: Input | M1: Internal Link
B2: Input | CESS Payments
B4: Calc | NPV of CESS payments
C6: Regulatory period 1
C7: Year | D7: =IF('Input | General'!D14="Yes",'Input | General'!D13,"n/a") -> 2018–19 | E7: =IF('Input | General'!E14="Yes",'Input | General'!E13,"n/a") -> 2019–20 | F7: =IF('Input | General'!F14="Yes",'Input | General'!F13,"n/a") -> 2020–21 | G7: =IF('Input | General'!G14="Yes",'Input | General'!G13,"n/a") -> 2021–22 | H7: =IF('Input | General'!H14="Yes",'Input | General'!H13,"n/a") -> 2022–23
C8: Discount rate (Real WACC) | D8: ='Input | Inflation and Disc Rate'!G20 -> 0.03993698959 | E8: ='Input | Inflation and Disc Rate'!H20 -> 0.03876891181 | F8: ='Input | Inflation and Disc Rate'!I20 -> 0.03667696539 | G8: ='Input | Inflation and Disc Rate'!J20 -> 0.0340251713 | H8: ='Input | Inflation and Disc Rate'!K20 -> 0.0340251713
C9: Discount rate (Nominal, fixed real WACC) | D9: ='Input | Inflation and Disc Rate'!G22 -> 0.05979033212 | E9: ='Input | Inflation and Disc Rate'!H22 -> 0.05730180944 | F9: ='Input | Inflation and Disc Rate'!I22 -> 0.05575690953 | G9: ='Input | Inflation and Disc Rate'!J22 -> 0.04292383887 | H9: ='Input | Inflation and Disc Rate'!K22 -> 0.06763098937
C10: Capex allowance | D10: ='Input | Reported Capex'!H$11*'Input | Inflation and Disc Rate'!G$15*(1+'Input | Inflation and Disc Rate'!G$20)^0.5 -> 227.8966185 | E10: ='Input | Reported Capex'!I$11*'Input | Inflation and Disc Rate'!H$15*(1+'Input | Inflation and Disc Rate'!H$20)^0.5 -> 377.7339488 | F10: ='Input | Reported Capex'!J$11*'Input | Inflation and Disc Rate'!I$15*(1+'Input | Inflation and Disc Rate'!I$20)^0.5 -> 643.022443 | G10: ='Input | Reported Capex'!K$11*'Input | Inflation and Disc Rate'!J$15*(1+'Input | Inflation and Disc Rate'!J$20)^0.5 -> 1341.129446 | H10: ='Input | Reported Capex'!L$11*'Input | Inflation and Disc Rate'!K$15*(1+'Input | Inflation and Disc Rate'!K$20)^0.5 -> 1012.489538
C11: Actual capex | D11: ='Input | Reported Capex'!H21*(1+D$9)^0.5 -> 212.1035465 | E11: ='Input | Reported Capex'!I21*(1+E$9)^0.5 -> 323.1657837 | F11: ='Input | Reported Capex'!J21*(1+F$9)^0.5 -> 797.6535231 | G11: ='Input | Reported Capex'!K21*(1+G$9)^0.5 -> 735.8929123 | H11: ='Input | Reported Capex'!L21*(1+H$9)^0.5 -> 968.0478844
C12: Underspend | D12: =(D10-D11) -> 15.79307199 | E12: =(E10-E11) -> 54.5681651 | F12: =(F10-F11) -> -154.6310801 | G12: 605.2365333 | H12: 44.44165349
C13: Year 1 benefit | E13: =$D$12*$E$8 -> 0.6122802153 | F13: =$D$12*$F$8*(1+'Input | Inflation and Disc Rate'!H13) -> 0.589576334 | G13: =$D$12*$G$8*(1+'Input | Inflation and Disc Rate'!H13)*(1+'Input | Inflation and Disc Rate'!I13) -> 0.5570157187 | H13: =$D$12*$H$8*(1+'Input | Inflation and Disc Rate'!H13)*(1+'Input | Inflation and Disc Rate'!I13)*(1+'Input | Inflation and Disc Rate'!J13) -> 0.5618093135
C14: Year 2 benefit | F14: =$E$12*F$8 -> 2.001394702 | G14: =$E$12*G$8*(1+'Input | Inflation and Disc Rate'!I13) -> 1.890863395 | H14: =$E$12*H$8*(1+'Input | Inflation and Disc Rate'!I13)*(1+'Input | Inflation and Disc Rate'!J13) -> 1.907135886
C15: Year 3 benefit | G15: =$F$12*G$8 -> -5.261348989 | H15: =$F$12*$H$8*(1+'Input | Inflation and Disc Rate'!J13) -> -5.30662738
C16: Year 4 benefit | H16: =$G$12*$H$8 -> 20.59327672
C17: Year 5 benefit
C18: Total financing benefit | D18: =SUM(D13:D17) -> 0 | E18: =SUM(E13:E17) -> 0.6122802153 | F18: =SUM(F13:F17) -> 2.590971036 | G18: -2.813469875 | H18: 17.75559454
C19: Discount factor (end of year) | D19: =E19*(1+E$9) -> 1.24290139 | E19: 1.175540776 | F19: =G19*(1+G$9) -> 1.11345781 | G19: =H19*(1+H$9) -> 1.067630989 | H19: 1
C20: NPV underspend | D20: =D12*D19 -> 19.62923113 | E20: =E12*E19 -> 64.14710316 | F20: =F12*F19 -> -172.1751838 | G20: 646.1692789 | H20: 44.44165349
C21: NPV financing benefit | D21: =D18*D19 -> 0 | E21: =E18*E19 -> 0.7197603596 | F21: =F18*F19 -> 2.884936936 | G21: -3.003747627 | H21: 17.75559454
C23: Regulatory period 2
C24: Year | D24: ='Input | General'!$D$18 -> 2023-24 | E24: ='Input | General'!$E$18 -> 2024–25 | F24: ='Input | General'!$F$18 -> 2025–26 | G24: ='Input | General'!$G$18 -> 2026–27 | H24: ='Input | General'!$H$18 -> 2027–28
C25: Discount rate: | D25: ='Input | Inflation and Disc Rate'!L$22 -> 0.04703357468 | E25: ='Input | Inflation and Disc Rate'!M$22 -> 0.04703357468 | F25: ='Input | Inflation and Disc Rate'!N$22 -> 0.04703357468 | G25: ='Input | Inflation and Disc Rate'!O$22 -> 0.04703357468 | H25: ='Input | Inflation and Disc Rate'!P$22 -> 0.04703357468
C26: Increase in forecast capex in regulatory period 2 attributable to capex deferred in regulatory period 1 | D26: ='Input | Reported Capex'!H29 -> 462.57 | E26: ='Input | Reported Capex'!I29 -> 78.26478887 | F26: ='Input | Reported Capex'!J29 -> 0 | G26: ='Input | Reported Capex'!K29 -> 0 | H26: ='Input | Reported Capex'!L29 -> 0
C27: Discount factor (middle of year 5) | D27: =1/(1+D25)^(0.5) -> 0.9772815411 | E27: =1/((1+E25)^(0.5)*(1+D25)) -> 0.9333812829 | F27: =1/((1+F25)^(0.5)*(1+E25)*(1+D25)) -> 0.8914530588 | G27: =1/((1+G25)^(0.5)*(1+F25)*(1+E25)*(1+D25)) -> 0.8514082837 | H27: =1/((1+H25)^(0.5)*(1+G25)*(1+F25)*(1+E25)*(1+D25)) -> 0.8131623516
C28: NPV of increase in forecast capex from deferred capex | D28: =D26*D27 -> 452.0611225 | E28: =E26*E27 -> 73.05088904 | F28: 0 | G28: 0 | H28: =H26*H27 -> 0
C30: CESS calculation (post-adjustment)
C31: Total underspend (NPV) adjusted for deferrals | D31: =SUM(D20:H20)-SUM(D28:H28) -> 77.10007132
C32: Relevant sharing ratio | D32: 0.3
C33: Consumer share | D33: =(1-D32)*D31 -> 53.97004992
C34: NSP share | D34: =D32*D31 -> 23.1300214
C35: Total NSP financing benefit (NPV) | D35: =SUM(D21:H21) -> 18.35654421
C36: NPV of CESS payments (post-adjustment) | D36: =D34-D35 -> 4.773477183
B38: Calc | Total CESS Payments
D40: ='Input | General'!D18 -> 2023-24 | E40: ='Input | General'!E18 -> 2024–25 | F40: ='Input | General'!F18 -> 2025–26 | G40: ='Input | General'!G18 -> 2026–27 | H40: ='Input | General'!H18 -> 2027–28
C41: Discount factor | D41: =1/(1+'Input | Inflation and Disc Rate'!L21) -> 0.9775231315 | E41: =D41/(1+'Input | Inflation and Disc Rate'!M21) -> 0.9555514727 | F41: =E41/(1+'Input | Inflation and Disc Rate'!N21) -> 0.9340736679 | G41: =F41/(1+'Input | Inflation and Disc Rate'!O21) -> 0.9130786169 | H41: =G41/(1+'Input | Inflation and Disc Rate'!P21) -> 0.8925554689
C42: =CONCATENATE("CESS Payment Per Year ($", 'Output | Models'!$F$8," million)") -> CESS Payment Per Year ($2022–23 million) | D42: =D36/(SUM(D41:H41)) -> 1.021549222 | E42: =D42 -> 1.021549222 | F42: =E42 -> 1.021549222 | G42: 1.021549222 | H42: 1.021549222
C44: =CONCATENATE("Total CESS Payment ($", 'Output | Models'!$F$8," million)") -> Total CESS Payment ($2022–23 million) | D44: =SUM(D42:H42) -> 5.107746111
B47: End

Sheet Output | Models
B1: ='Input | General'!$B$1 -> NSW TNSP 2023-28 Regulatory Proposal - Capital expenditure sharing scheme model | K1: Key: | L1: Input | M1: Internal Link
B2: Output | Models
B4: Inputs for Post Tax Revenue Model | J4: Note. The dollar base should be consistent with the post tax revenue model
C6: Revenue Adjustments | D6: Source | E6: Unit | F6: Basis | J6: ='Calc | CESS Revenue Increments'!D40 -> 2023-24 | K6: ='Calc | CESS Revenue Increments'!E40 -> 2024–25 | L6: ='Calc | CESS Revenue Increments'!F40 -> 2025–26 | M6: ='Calc | CESS Revenue Increments'!G40 -> 2026–27 | N6: ='Calc | CESS Revenue Increments'!H40 -> 2027–28 | O6: Total
C8: CESS increments as per NER 6A.5.4(a)(5) | D8: Calc | CESS Revenue Increments | E8: $millions | F8: =IF(LEN(J6)>4,CONCATENATE(LEFT(J6,4)-1&"–"&IF(RIGHT(J6,2)="00","99",IF(RIGHT(J6,2)-1<10,"0","")&RIGHT(J6,2)-1)),J6-1) -> 2022–23 | J8: ='Calc | CESS Revenue Increments'!D42 -> 1.021549222 | K8: ='Calc | CESS Revenue Increments'!E42 -> 1.021549222 | L8: ='Calc | CESS Revenue Increments'!F42 -> 1.021549222 | M8: ='Calc | CESS Revenue Increments'!G42 -> 1.021549222 | N8: ='Calc | CESS Revenue Increments'!H42 -> 1.021549222 | O8: =SUM(J8:N8) -> 5.107746111
B11: End
